bitfinex/quotes_ETHUSD_20250815
["timestamp","ask_amount","ask_price","bid_price","bid_amount"]
[1755294241757,51.49776574,4419.7,4419.2,0.1128]
[1755294241962,2.2628018,4419.3,4418.1,0.02]
[1755294242203,5.262853,4419.2,4418.9,0.1128]
[1755294242403,5.375653,4419.2,4418.5,0.1128]
[1755294242787,5.375653,4419.2,4418.1,0.02]
[1755294242788,2.26310905,4418.7,4418.1,0.02]
[1755294243003,51.49827779,4418.7,4418.3,0.1128]
[1755294243322,51.49827779,4418.7,4418.1,0.02]
[1755294243603,51.49827779,4418.7,4418.1,0.1328]
[1755294243817,5.26310905,4418.7,4418.1,0.02]
[1755294244121,5.26310905,4418.7,4418.1,0.1328]
[1755294247504,5.71170905,4418.7,4418.1,0.02]
[1755294248382,5.26310905,4418.7,4418.1,0.02]
[1755294248588,5.71170905,4418.7,4418.1,0.02]
[1755294248822,21.61107779,4418.7,4418.1,0.02]
[1755294249226,21.61107779,4418.7,4418.3,1.1995]
[1755294249520,21.61107779,4418.7,4418.2,0.001]
[1755294250298,22.09073294,4418.7,4418.2,0.001]
[1755294254123,22.69455806,4418.7,4418.2,0.001]
[1755294254422,5.7427642,4418.7,4418.2,1.6431]
[1755294254589,5.7427642,4418.7,4418.6,1.6431]
[1755294255190,6.34658932,4418.7,4418.6,1.6431]
[1755294255484,5.7427642,4418.7,4418.6,1.6431]
[1755294255899,6.34443643,4418.7,4418.6,1.6431]
[1755294256095,0.47965515,4418.7,4418.6,1.6431]
[1755294256309,0.48184433,4419.3,4418.6,4.07056274]
[1755294256500,0.60167223,4419.8,4418.7,1.6421]
[1755294256501,0.48184433,4419.7,4418.7,1.6421]
[1755294256696,0.48184433,4419.6,4418.8,1.66473057]
[1755294256995,0.48184433,4419.5,4418.9,1.6421]
[1755294257193,2.26245073,4420.0,4418.6,2.42846004]
[1755294257194,0.48184433,4419.4,4419.0,1.6421]
[1755294257407,0.48184433,4419.3,4418.6,2.42846004]
[1755294257608,0.48184433,4419.2,4419.1,1.6421]
[1755294260547,0.48184433,4419.2,4419.1,2.03487232]
[1755294260711,0.60167223,4419.8,4419.1,1.6421]
[1755294260926,0.48311767,4419.7,4419.2,1.6421]
[1755294261125,0.48311767,4419.6,4419.0,2.26291387]
[1755294261326,0.48311767,4419.5,4419.3,1.6421]
[1755294261524,0.48311767,4419.4,4419.3,1.6421]
[1755294262563,0.60167223,4420.1,4419.3,3.9049018]
[1755294262765,0.002,4420.2,4419.3,3.9049018]
[1755294262766,0.48302337,4420.0,4419.3,5.7928018]
[1755294262971,0.48302337,4419.9,4419.4,1.6421]
[1755294263262,0.48302337,4419.8,4419.5,1.6421]
[1755294263472,0.48302337,4419.7,4419.3,5.7928018]
[1755294263681,0.60367223,4420.2,4419.6,1.6421]
[1755294263870,0.48305313,4420.1,4419.6,1.6421]
[1755294264071,0.48305313,4420.0,4419.6,1.6421]
[1755294264265,0.48305313,4419.9,4419.7,1.6421]
[1755294264475,0.48305313,4419.8,4419.3,6.29844598]
[1755294264690,0.48305313,4419.7,4419.4,2.28532929]
[1755294264870,0.002,4420.2,4419.6,2.2626482]
[1755294265071,0.48316031,4420.1,4419.7,1.6421]
[1755294265276,0.48316031,4420.0,4419.6,2.2626482]
[1755294265579,0.48316031,4419.9,4419.8,1.6421]
[1755294266184,0.48316031,4419.9,4419.8,1.7549]
[1755294266369,0.002,4420.2,4419.8,1.7549]
[1755294266687,0.48323674,4420.1,4419.9,1.66472494]
[1755294266982,0.002,4420.2,4420.1,0.1128]
[1755294267149,0.002,4420.2,4420.1,2.37519225]
[1755294267655,0.002,4420.2,4420.1,4.01729225]
[1755294268387,30.4506,4420.2,4418.2,0.001]
[1755294268596,16.23516874,4419.7,4418.6,0.001]
[1755294268794,0.48282571,4419.6,4418.6,0.001]
[1755294268996,0.48282571,4419.5,4418.6,0.001]
[1755294269182,0.48282571,4419.4,4418.6,0.001]
[1755294269493,0.48282571,4419.3,4418.6,0.001]
[1755294269794,0.48282571,4419.7,4418.6,0.001]
[1755294269964,0.48282571,4419.6,4418.6,0.001]
[1755294270163,2.26295541,4419.0,4418.6,0.001]
[1755294270362,2.26310321,4418.8,4418.6,0.001]
[1755294270578,3.48282571,4418.7,4418.6,0.001]
[1755294270803,3.19453476,4418.7,4418.6,0.001]
[1755294270976,0.93142571,4418.7,4418.6,0.001]
[1755294271377,3.19453476,4418.7,4418.6,0.001]
[1755294274267,2.71170905,4418.7,4418.6,0.001]
[1755294274482,3.19453476,4418.7,4418.6,0.001]
[1755294274692,2.26310905,4418.7,4418.6,0.001]
[1755294274900,2.74593476,4418.7,4418.6,0.001]
[1755294275103,2.86462882,4419.0,4418.6,0.001]
[1755294275104,2.74589432,4418.8,4418.6,0.001]
[1755294275303,0.48282571,4418.9,4418.6,0.001]
[1755294275603,16.23516874,4419.6,4418.6,0.001]
[1755294275604,0.48282571,4419.1,4418.6,0.001]
[1755294275799,0.4486,4418.8,4418.6,0.001]
[1755294276170,2.71169038,4418.8,4418.6,0.001]
[1755294277270,3.4486,4418.8,4418.6,0.001]
[1755294277471,6.19452244,4418.8,4418.6,0.001]
[1755294277807,0.48280529,4418.7,4418.6,0.001]
[1755294278299,5.26309673,4418.8,4418.6,0.001]
[1755294278514,3.0,4418.8,4418.6,0.001]
[1755294278719,0.48285445,4418.9,4418.7,1.5996]
[1755294278888,0.1128,4419.1,4418.8,1.1714]
[1755294279430,2.2628018,4419.3,4418.8,0.4282]
[1755294279647,2.3756018,4419.3,4418.9,1.1714]
[1755294279779,0.1128,4419.3,4418.9,1.1714]
[1755294280217,3.59565445,4419.5,4418.9,0.1128]
[1755294280814,5.26279166,4419.4,4418.9,0.1128]
[1755294281015,2.26279166,4419.4,4418.9,0.1128]
[1755294281314,2.26280773,4419.3,4418.9,0.1128]
[1755294282332,5.37551621,4419.5,4418.9,0.1128]
[1755294282619,2.26280818,4419.3,4418.9,0.1128]
[1755294282819,3.0,4419.2,4418.6,0.001]
[1755294283018,2.26285885,4419.2,4419.0,0.1128]
[1755294283790,3.0,4419.2,4419.0,0.1128]
[1755294283991,2.26281187,4419.3,4419.0,0.1128]
[1755294284494,2.26275082,4419.4,4419.0,0.1128]
[1755294285622,2.37545165,4419.6,4419.0,0.1128]
[1755294286429,2.26270879,4419.5,4419.0,0.1128]
[1755294286723,0.1128,4419.6,4419.0,0.1128]
[1755294287429,2.37546542,4419.6,4419.0,0.1128]
[1755294288130,2.37746542,4419.6,4419.0,0.1128]
[1755294290134,0.1148,4419.6,4419.0,0.1128]
[1755294292496,2.37745448,4419.6,4419.0,0.1128]
[1755294292804,3.0,4419.5,4419.0,0.1128]
[1755294293008,7.23677863,4419.6,4419.1,1.5996]
[1755294293009,0.002,4419.6,4419.1,1.5996]
[1755294293216,0.002,4419.6,4419.4,0.1128]
[1755294293821,0.002,4419.6,4419.5,1.5996]
[1755294294127,0.002,4419.6,4419.5,1.1714]
[1755294294452,0.002,4419.6,4419.5,1.5996]
[1755294296853,0.002,4419.6,4419.5,4.25982338]
[1755294297319,0.002,4419.6,4419.5,4.28245037]
[1755294297752,0.002,4419.6,4419.5,4.25982338]
[1755294298328,0.002,4419.6,4419.5,7.78882338]
[1755294298541,0.002,4419.6,4419.5,8.33882338]
[1755294300326,1e-08,4419.6,4419.5,8.33882338]
[1755294300527,0.002,4420.5,4420.0,2.81244343]
[1755294300733,1e-08,4420.5,4420.4,2.26223871]
[1755294300933,1e-08,4420.5,4420.4,2.28486109]
[1755294301186,1e-08,4420.5,4420.4,3.88446109]
[1755294301365,1e-08,4420.5,4420.4,3.86183871]
[1755294301531,1e-08,4420.5,4420.4,3.88446109]
[1755294301735,1e-08,4420.5,4420.4,4.91244336]
[1755294303379,1e-08,4420.5,4420.4,6.84084336]
[1755294303545,1.07810001,4420.5,4420.4,3.528]
[1755294303759,1e-08,4420.5,4420.2,3.528]
[1755294304788,0.4604,4420.4,4419.7,5.437]
[1755294305069,1.0781,4420.4,4419.8,3.528]
[1755294305252,1.0781,4420.4,4418.6,1.1724]
[1755294305253,0.4604,4420.3,4418.9,2.26296619]
[1755294305575,5.26241289,4420.1,4419.0,3.97960752]
[1755294305748,3.0,4420.0,4419.0,3.527]
[1755294305943,2.26247107,4420.0,4419.0,3.527]
[1755294306159,0.4604,4420.2,4419.0,3.527]
[1755294306361,2.26284954,4419.3,4419.0,3.527]
[1755294306568,3.0,4419.1,4418.6,0.001]
[1755294306746,2.26290847,4419.1,4418.6,0.001]
[1755294306946,2.26282711,4419.3,4418.9,0.1128]
[1755294307274,2.69332711,4419.3,4418.9,0.1128]
[1755294307740,0.1128,4419.5,4418.9,0.1128]
[1755294308350,2.26244343,4420.0,4418.8,3.527]
[1755294308576,0.1128,4420.0,4419.4,0.1128]
[1755294308771,0.1128,4420.0,4418.8,6.30988042]
[1755294308772,2.2623522,4420.2,4419.7,0.1128]
[1755294308980,0.5433,4420.3,4419.7,0.1128]
[1755294309173,0.1128,4420.3,4419.7,0.1128]
[1755294309575,30.4305,4420.2,4419.7,0.1128]
[1755294309810,2.26265719,4419.6,4419.0,3.528]
[1755294310015,0.4305,4419.5,4419.2,0.1128]
[1755294310190,0.4305,4419.5,4418.3,3.528]
[1755294310377,5.2628018,4419.3,4418.9,0.1128]
[1755294310574,3.1128,4419.5,4418.9,0.1128]
[1755294310908,0.1128,4419.5,4418.9,0.1128]
[1755294311325,3.4305,4419.8,4418.6,2.26415034]
[1755294311626,2.88008257,4420.2,4418.6,2.26415034]
[1755294311627,2.26238196,4420.2,4418.8,2.26304654]
[1755294311776,1e-08,4420.5,4419.7,0.1128]
[1755294312107,2.26235712,4420.2,4419.7,0.1128]
[1755294312279,2.26254581,4419.8,4419.7,0.1128]
[1755294312681,6.31074581,4419.8,4419.7,0.1128]
[1755294312889,2.26264802,4419.7,4419.4,3.528]
[1755294313095,2.69314802,4419.7,4419.4,3.528]
[1755294313301,2.26264802,4419.7,4419.4,3.528]
[1755294313495,0.4305,4419.6,4419.4,3.528]
[1755294314212,0.4305,4419.6,4419.1,0.1128]
[1755294315125,3.0,4419.7,4419.1,0.1128]
[1755294315126,0.4305,4419.5,4419.1,0.1128]
[1755294315494,0.4305,4419.4,4419.1,0.1128]
[1755294316999,3.1128,4419.8,4419.1,1.3338]
[1755294317000,2.37534739,4419.8,4419.1,1.3338]
[1755294317200,0.1128,4419.8,4419.1,1.7821]
[1755294319904,0.1128,4419.8,4419.1,0.1128]
[1755294320100,0.1128,4419.8,4419.2,1.6693]
[1755294320333,0.11280001,4420.5,4419.7,0.1128]
[1755294320504,0.11280001,4420.5,4419.8,0.4483]
[1755294320702,0.11280001,4420.5,4419.8,1.6693]
[1755294322323,0.11280001,4420.5,4419.9,1.6693]
[1755294322324,1e-08,4420.5,4419.9,1.6693]
[1755294322700,1e-08,4420.5,4420.0,1.6693]
[1755294323423,1e-08,4420.5,4420.1,1.6693]
[1755294323833,1e-08,4420.5,4420.2,1.6693]
[1755294324343,1e-08,4420.5,4420.3,1.221]
[1755294326439,1e-08,4420.5,4419.7,3.528]
[1755294326739,1e-08,4420.5,4419.8,1.6693]
[1755294327230,1e-08,4420.5,4419.9,1.221]
[1755294328225,1e-08,4420.5,4419.7,3.528]
[1755294329023,1e-08,4420.5,4419.8,0.02262545]
[1755294329228,1e-08,4420.5,4419.8,1.69192545]
[1755294329546,1e-08,4420.5,4419.8,2.37801901]
[1755294330937,1e-08,4420.5,4419.8,0.70871901]
[1755294331149,1e-08,4420.5,4419.9,1.6693]
[1755294331632,1e-08,4420.5,4420.0,1.6693]
[1755294331832,1e-08,4420.5,4420.1,0.23553936]
[1755294332039,1e-08,4420.5,4420.2,3.527]
[1755294332217,1e-08,4420.5,4420.4,0.1128]
[1755294332815,1e-08,4420.5,4420.4,1.3338]
[1755294333116,1e-08,4420.5,4420.4,1.7821]
[1755294334538,1e-08,4420.5,4420.4,1.3338]
[1755294334826,1e-08,4420.5,4420.4,1.7821]
[1755294336958,1e-08,4420.5,4420.4,0.1128]
[1755294337962,1e-08,4420.5,4420.4,1.7652]
[1755294340660,1e-08,4420.5,4420.4,2.40785658]
[1755294340860,1e-08,4420.5,4420.4,4.67009529]
[1755294347373,1e-08,4420.5,4420.4,8.19509529]
[1755294350702,1e-08,4420.5,4420.4,8.30789529]
[1755294355306,1e-08,4420.5,4420.4,8.74509529]
[1755294355608,1e-08,4420.5,4420.4,8.85789529]
[1755294356812,0.002,4421.0,4420.9,2.81198285]
[1755294356995,0.002,4421.0,4420.9,6.84338677]
[1755294357311,0.002,4421.0,4420.9,8.60858677]
[1755294358075,1e-08,4421.0,4420.9,12.90858677]
[1755294359315,1e-08,4421.0,4420.9,12.99920477]
[1755294360488,1e-08,4421.4,4421.3,2.81177821]
[1755294360689,1e-08,4421.4,4421.3,6.63857381]
[1755294361007,1e-08,4421.4,4421.3,8.26835603]
[1755294361188,1e-08,4421.4,4421.3,8.38115603]
[1755294362290,1e-08,4421.4,4421.3,8.58755603]
[1755294362590,1e-08,4421.4,4421.3,12.68115603]
[1755294362817,1e-08,4421.4,4421.3,8.70035603]
[1755294363003,1e-08,4421.4,4421.3,12.68115603]
[1755294364996,1e-08,4421.4,4421.3,12.22335603]
[1755294366409,1e-08,4421.4,4421.3,11.02875603]
[1755294366903,1e-08,4421.4,4421.3,6.72775603]
[1755294367418,1e-08,4421.4,4421.3,7.84115603]
[1755294368197,1e-08,4421.4,4421.3,8.30895603]
[1755294368595,1e-08,4421.4,4421.3,7.84115603]
[1755294369828,1e-08,4421.4,4421.3,7.72835603]
[1755294372104,1e-08,4421.4,4421.3,8.19615603]
[1755294373932,0.002,4422.3,4421.3,8.19615603]
[1755294373933,0.002,4422.3,4422.2,2.81131789]
[1755294374132,1e-08,4422.4,4422.3,2.81126676]
[1755294374336,1e-08,4422.4,4422.3,8.71507942]
[1755294374534,1e-08,4422.4,4422.3,8.69246676]
[1755294374703,1e-08,4422.4,4422.3,10.8969308]
[1755294377344,1e-08,4423.0,4422.9,2.81096]
[1755294377507,1e-08,4423.0,4422.9,6.3545696]
[1755294377707,1e-08,4423.0,4422.9,7.91316]
[1755294378642,1e-08,4423.0,4422.9,2.351549]
[1755294378803,0.95540001,4423.0,4422.9,5.78096]
[1755294379242,0.95540001,4423.0,4422.9,3.52]
[1755294380023,0.95540001,4423.0,4422.9,3.6328]
[1755294380220,0.95540001,4423.0,4422.9,0.1128]
[1755294380619,0.95540001,4423.0,4422.9,3.6328]
[1755294381841,0.45840001,4423.0,4422.9,3.6328]
[1755294382133,0.95540001,4423.0,4422.9,3.6328]
[1755294383323,0.95540001,4423.0,4422.9,0.1128]
[1755294383630,0.45840001,4423.0,4422.9,3.6328]
[1755294385363,1e-08,4423.0,4422.9,3.6328]
[1755294385516,0.45840001,4423.0,4422.9,3.6328]
[1755294385917,0.95540001,4423.0,4422.9,3.6328]
[1755294386147,0.45840001,4423.0,4422.9,3.6328]
[1755294386349,1e-08,4423.0,4422.9,3.6328]
[1755294386550,0.45840001,4423.0,4422.9,3.6328]
[1755294387442,1e-08,4423.0,4422.9,3.6328]
[1755294388534,0.45840001,4423.0,4422.9,3.6328]
[1755294389143,1e-08,4423.0,4422.9,3.6328]
[1755294389631,1e-08,4423.0,4422.9,3.6554096]
[1755294391068,1e-08,4423.0,4422.9,3.6328]
[1755294391866,0.45840001,4423.0,4422.9,3.6328]
[1755294392053,1e-08,4423.0,4422.9,3.6328]
[1755294392259,1e-08,4423.0,4422.9,7.86311066]
[1755294392456,1e-08,4423.0,4422.9,8.39050106]
[1755294393733,1e-08,4423.0,4422.9,5.89376]
[1755294393933,1e-08,4423.0,4422.9,5.89276]
[1755294394356,1e-08,4423.0,4422.9,2.37376]
[1755294394555,1e-08,4423.0,4422.9,3.519]
[1755294396269,1e-08,4423.0,4422.9,5.77996]
[1755294397278,1e-08,4423.0,4422.9,6.58406204]
[1755294398082,1e-08,4423.0,4422.9,8.76216204]
[1755294399689,1e-08,4423.0,4422.9,8.21216204]
[1755294399904,1e-08,4423.0,4422.9,8.76216204]
[1755294404475,1e-08,4423.0,4422.9,8.87496204]
[1755294405114,0.002,4423.5,4422.9,8.87496204]
[1755294405115,1e-08,4423.5,4423.4,2.81070443]
[1755294405266,1e-08,4423.5,4423.4,6.85845974]
[1755294405470,1e-08,4423.5,4423.4,8.5767527]
[1755294406397,1e-08,4423.5,4423.4,8.0267527]
[1755294406584,1e-08,4423.5,4423.4,8.5767527]
[1755294407764,1e-08,4423.5,4423.4,8.1086527]
[1755294407970,1e-08,4423.5,4423.4,2.8806527]
[1755294408214,1e-08,4423.5,4423.4,5.77770443]
[1755294408412,1e-08,4423.5,4423.4,6.32770443]
[1755294408770,1e-08,4423.5,4423.4,2.26070443]
[1755294408971,1e-08,4423.5,4423.4,5.77770443]
[1755294409418,0.42770001,4423.5,4423.4,5.77770443]
[1755294411410,1e-08,4423.5,4423.4,5.77770443]
[1755294411577,1e-08,4423.5,4423.4,3.517]
[1755294411778,0.42770001,4423.5,4423.4,3.517]
[1755294412182,0.42770001,4423.5,4422.9,2.26094716]
[1755294412380,0.42770001,4423.5,4423.0,3.517]
[1755294412907,1e-08,4423.5,4423.0,3.517]
[1755294413114,0.4277,4423.4,4423.0,3.517]
[1755294413613,0.4277,4423.3,4423.0,3.517]
[1755294413829,1e-08,4423.5,4423.0,3.517]
[1755294414032,0.4277,4423.4,4423.0,3.517]
[1755294414332,0.4277,4423.3,4423.0,3.517]
[1755294414515,0.8866,4423.2,4423.0,3.517]
[1755294414719,1e-08,4423.5,4423.0,3.517]
[1755294414916,0.8866,4423.1,4423.0,3.517]
[1755294415132,0.8866,4423.1,4422.8,0.001]
[1755294415332,0.8866,4423.0,4422.9,3.517]
[1755294416850,0.4277,4423.0,4422.9,3.517]
[1755294417144,0.8866,4423.0,4422.9,3.517]
[1755294418147,3.8866,4423.0,4422.8,0.001]
[1755294418314,0.4277,4422.9,4422.8,0.001]
[1755294418637,1e-08,4423.5,4422.8,0.001]
[1755294418796,0.55,4423.1,4422.8,0.001]
[1755294418995,0.4277,4423.0,4422.8,0.001]
[1755294419400,0.679679,4423.3,4422.8,0.001]
[1755294419750,0.4277,4422.9,4422.8,0.001]
[1755294419904,0.4277,4422.9,4422.8,3.518]
[1755294420448,1e-08,4423.5,4422.8,3.518]
[1755294420612,0.679695,4423.1,4422.8,5.1461]
[1755294420937,1e-08,4423.5,4422.9,1.6281]
[1755294421234,0.67964101,4423.5,4422.8,3.518]
[1755294421458,0.67964101,4423.5,4422.8,3.54061011]
[1755294421459,1.10734101,4423.5,4422.8,3.54061011]
[1755294422374,1.10734101,4423.5,4422.8,3.518]
[1755294422539,3.4277,4423.4,4422.8,0.001]
[1755294422867,2.26075554,4423.3,4422.8,0.001]
[1755294423226,0.4277,4423.2,4422.8,0.001]
[1755294423631,2.26075554,4423.3,4422.8,0.001]
[1755294423851,1.107418,4423.1,4422.8,0.001]
[1755294424224,0.4277,4423.0,4422.8,0.001]
[1755294425076,1.107418,4423.0,4422.8,0.001]
[1755294425762,0.4277,4422.9,4422.8,0.001]
[1755294427031,0.679718,4423.0,4422.8,0.001]
[1755294427571,0.4337,4422.9,4422.8,0.001]
[1755294428361,0.679718,4423.0,4422.8,0.001]
[1755294428978,0.1128,4423.4,4422.8,0.001]
[1755294429139,0.679707,4423.0,4422.8,0.001]
[1755294430471,3.0,4422.9,4422.8,0.001]
[1755294431170,0.679707,4423.0,4422.8,0.001]
[1755294431345,3.0,4423.0,4422.8,0.001]
[1755294431757,2.26081667,4423.2,4422.8,0.001]
[1755294431974,2.26077151,4423.3,4422.8,0.001]
[1755294432175,0.1128,4423.4,4422.8,0.001]
[1755294432482,0.679701,4423.2,4422.9,1.5108]
[1755294432678,0.679701,4423.2,4423.0,1.5108]
[1755294432881,0.1128,4423.4,4422.8,0.001]
[1755294432882,1e-08,4423.5,4422.8,0.001]
[1755294433177,0.67965701,4423.5,4423.1,0.1128]
[1755294434085,3.67965701,4423.5,4423.1,0.1128]
[1755294435804,0.67965701,4423.5,4423.1,0.1128]
[1755294437692,0.67965701,4423.5,4423.2,3.516]
[1755294437897,1e-08,4423.5,4423.4,0.1128]
[1755294441097,1e-08,4423.5,4423.4,1.6236]
[1755294441621,1e-08,4423.5,4423.4,0.1128]
[1755294441796,1e-08,4423.5,4423.4,1.1602]
[1755294441997,1e-08,4423.5,4423.4,1.6236]
[1755294442800,1e-08,4423.5,4423.4,2.36364571]
[1755294443207,1e-08,4423.5,4423.4,4.62435014]
[1755294444022,1e-08,4423.5,4423.4,5.17435014]
[1755294451435,1e-08,4423.5,4423.4,3.11355014]
[1755294451633,1e-08,4423.5,4423.4,6.62755014]
[1755294452714,0.43370001,4423.5,4423.4,0.1128]
[1755294452939,0.85010001,4423.5,4423.4,3.6258]
[1755294453364,6.11075333,4423.5,4423.4,3.6258]
[1755294453747,3.85010001,4423.5,4423.4,0.1128]
[1755294453942,5.69435333,4423.5,4423.4,3.6258]
[1755294454259,3.43370001,4423.5,4423.4,3.6258]
[1755294455048,2.69435333,4423.5,4423.4,0.1128]
[1755294455360,36.11075333,4423.5,4423.4,0.1128]
[1755294455960,5.69435333,4423.5,4423.4,0.1128]
[1755294456330,3.43370001,4423.5,4423.4,0.1128]
[1755294456731,1e-08,4423.5,4423.4,0.1128]
[1755294457453,2.26065333,4423.5,4423.4,0.1128]
[1755294457623,2.26073869,4423.4,4423.2,0.1128]
[1755294457828,7.22956239,4423.3,4423.2,0.1128]
[1755294458056,12.49031793,4423.3,4423.2,0.1128]
[1755294458230,10.22956239,4423.3,4423.2,0.1128]
[1755294460249,3.0,4423.3,4423.2,0.1128]
[1755294461545,3.4691,4423.3,4423.2,0.1128]
[1755294461784,10.69866239,4423.3,4423.2,0.1128]
[1755294462700,12.95941793,4423.3,4423.2,0.1128]
[1755294462864,13.85969421,4423.3,4423.2,0.1128]
[1755294463059,2.26080665,4423.2,4423.1,0.001]
[1755294463252,2.72990665,4423.2,4423.1,0.001]
[1755294464193,5.72990665,4423.2,4423.1,0.001]
[1755294464863,5.26080665,4423.2,4423.1,0.001]
[1755294465065,6.62966847,4423.2,4423.1,0.001]
[1755294465387,6.14630665,4423.2,4423.1,0.001]
[1755294465992,5.72990665,4423.2,4423.1,0.001]
[1755294466611,5.26080665,4423.2,4423.1,0.001]
[1755294470238,35.72990665,4423.2,4423.1,0.001]
[1755294472797,2.26096,4422.9,4422.8,0.001]
[1755294473106,35.37376,4422.9,4422.8,0.001]
[1755294473279,36.70332342,4422.9,4422.8,0.001]
[1755294474500,35.37376,4422.9,4422.8,0.001]
[1755294474704,35.85638404,4422.9,4422.8,0.001]
[1755294475315,36.32548404,4422.9,4422.8,0.001]
[1755294475785,5.85638404,4422.9,4422.8,0.001]
[1755294476115,35.85638404,4422.9,4422.8,0.001]
[1755294476275,36.32548404,4422.9,4422.8,0.001]
[1755294476613,36.70328404,4422.9,4422.8,0.001]
[1755294476815,36.32548404,4422.9,4422.8,0.001]
[1755294477411,35.85638404,4422.9,4422.8,0.001]
[1755294479030,36.32548404,4422.9,4422.8,0.001]
[1755294479208,36.70328404,4422.9,4422.8,0.001]
[1755294479779,37.30709729,4422.9,4422.8,0.001]
[1755294480209,36.32548404,4422.9,4422.8,0.001]
[1755294480586,33.46049402,4422.9,4422.8,0.001]
[1755294480813,0.1128,4422.9,4422.8,1.5644]
[1755294481215,2.26069947,4423.5,4422.8,1.5644]
[1755294481382,0.1128,4423.4,4422.9,1.5634]
[1755294481583,2.26075554,4423.3,4423.0,1.5634]
[1755294481818,3.0,4423.2,4423.0,1.1144]
[1755294482182,5.74487193,4423.2,4422.8,0.1138]
[1755294482381,0.48406291,4423.2,4422.8,1.2282]
[1755294482587,3.0,4423.1,4422.9,1.1144]
[1755294482777,5.26082722,4423.2,4422.9,1.1144]
[1755294483090,5.74496611,4423.2,4422.9,1.1144]
[1755294484038,2.26096,4422.9,4422.8,0.1138]
[1755294484189,2.37376,4422.9,4422.8,0.001]
[1755294484400,5.84286,4422.9,4422.8,0.001]
[1755294484594,6.32699889,4422.9,4422.8,0.001]
[1755294485913,6.93110887,4422.9,4422.8,0.001]
[1755294486320,6.32699889,4422.9,4422.8,0.001]
[1755294486621,12.49062463,4422.7,4422.6,0.001]
[1755294486822,52.21720299,4422.7,4422.6,0.001]
[1755294487004,52.65540299,4422.7,4422.6,0.001]
[1755294488824,53.03320299,4422.7,4422.6,0.001]
[1755294489120,53.24360126,4422.7,4422.6,0.001]
[1755294489321,53.03320299,4422.7,4422.6,0.001]
[1755294489509,53.2435403,4422.7,4422.6,0.001]
[1755294489903,53.7935403,4422.7,4422.6,0.001]
[1755294490305,53.58320299,4422.7,4422.6,0.001]
[1755294490634,2.26142017,4422.0,4421.9,0.001]
[1755294490788,2.26175243,4421.4,4420.8,0.001]
[1755294490991,0.55,4420.6,4420.1,0.02]
[1755294491213,0.55,4421.0,4420.1,0.02]
[1755294491214,2.37514107,4420.2,4420.1,0.02]
[1755294491423,5.37514107,4420.2,4420.1,0.02]
[1755294491611,35.81334107,4420.2,4420.1,0.02]
[1755294491824,36.29747996,4420.2,4420.1,0.02]
[1755294493196,35.85927996,4420.2,4420.1,0.02]
[1755294494413,5.37514107,4420.2,4420.1,1.4895]
[1755294494809,3.1128,4420.2,4420.1,1.4895]
[1755294495131,3.0,4420.2,4420.1,1.4895]
[1755294495433,3.0,4420.5,4420.1,1.4895]
[1755294495730,0.680173,4420.6,4420.1,1.4895]
[1755294495731,2.26216329,4420.6,4420.2,1.4695]
[1755294495932,3.0,4421.0,4420.3,1.4695]
[1755294496103,3.0,4420.8,4420.3,1.4695]
[1755294496303,5.26215114,4420.6,4420.4,1.4695]
[1755294496498,2.2620933,4420.7,4420.5,1.4695]
[1755294496729,3.0,4421.0,4420.5,1.0131]
[1755294496927,5.26202123,4420.9,4420.6,1.0131]
[1755294497127,3.0,4420.7,4420.6,1.0131]
[1755294497298,2.26213579,4420.7,4420.5,0.4564]
[1755294497501,2.26213636,4420.6,4420.5,0.4564]
[1755294497913,2.26208897,4420.7,4420.5,1.4695]
[1755294498116,2.26202123,4420.9,4420.5,0.4564]
[1755294498334,3.0,4420.6,4420.1,0.02]
[1755294498498,2.26212304,4420.7,4420.1,0.02]
[1755294498701,2.26212304,4420.7,4420.2,1.0131]
[1755294499038,2.26208519,4420.7,4420.3,1.4695]
[1755294499205,2.26208519,4420.7,4420.1,0.02]
[1755294499405,2.26208519,4420.7,4420.2,1.4695]
[1755294499607,2.26208519,4420.7,4420.1,0.02]
[1755294499806,2.26208519,4420.7,4420.3,1.4695]
[1755294500019,2.26208519,4420.7,4420.1,0.02]
[1755294500217,0.4815278,4420.9,4420.4,1.4695]
[1755294500418,2.26185962,4421.2,4420.5,1.4695]
[1755294500419,2.26187006,4421.2,4420.5,1.4695]
[1755294500739,2.26186599,4421.2,4420.5,1.4695]
[1755294500945,2.26186599,4421.2,4420.5,1.61645]
[1755294501119,2.26186599,4421.2,4420.5,1.4695]
[1755294502826,2.26179782,4421.3,4420.6,1.0131]
[1755294503142,2.26179782,4421.3,4420.6,1.4695]
[1755294503441,2.26168954,4421.5,4420.7,1.4695]
[1755294503640,2.26168954,4421.5,4420.8,1.4695]
[1755294503943,2.26168954,4421.5,4420.9,1.4695]
[1755294504453,2.26168954,4421.5,4421.0,1.4695]
[1755294504657,2.26168954,4421.5,4421.1,1.4695]
[1755294504804,2.26168954,4421.5,4421.2,1.4695]
[1755294505011,2.26168954,4421.5,4420.3,0.45447652]
[1755294505210,2.26168954,4421.5,4420.3,1.92397652]
[1755294505435,2.26168954,4421.5,4421.0,0.1128]
[1755294505940,2.26167733,4421.5,4421.1,1.4695]
[1755294506139,0.1128,4421.6,4421.2,1.4695]
[1755294506445,2.26157592,4421.7,4421.3,1.4695]
[1755294506619,2.26166423,4421.6,4421.4,1.4695]
[1755294506942,2.26166423,4421.6,4421.5,1.0131]
[1755294512222,2.26166423,4421.6,4421.1,0.4564]
[1755294512743,5.26166423,4421.6,4421.2,1.4695]
[1755294512946,5.26166423,4421.6,4421.3,1.4695]
[1755294513146,5.26166423,4421.6,4421.3,0.4564]